{"text_format":"1","workbook":"xlsx","n_sheets":3,"sheets":["List1","List2","List3"],"not_rendered":{"charts":0,"images":0,"macros":0,"external_links":1,"defined_names":0,"comments":0,"pivot_tables":0},"unopened":[],"bounds":{"document_bytes":16777216,"sheet_cells":100000,"rows_first":2000,"rows_last":500,"rows_between":2000,"halvings":0,"cell_chars":16384,"cell_head_chars":4096},"cells_cut":0,"cells_raw":0,"read":"whole","date_system":"1900"}

{"sheet":"List1","index":0,"n_rows":80,"n_cols":10,"rows_kept":80,"cut":false,"hidden":false,"merged":[[25,3,25,4]]}
[]
[]
["Obec , IČ: Náklo, 00299251"]
[]
["Rozpočtové opatření č. 16  - 19. prosince 2022 "]
[]
["V souladu s ustanovením § 16 zákona č. 250/2000 Sb., o rozpočtových pravidlech územních rozpočtů dojde k rozpočtovému"]
["opatření v případě změn rozpočtových prostředků na závazných ukazatelích."]
[]
["Rozpočtové opatření č. 16/2022 (předloženo na ZO 19. 12. 2022) a doplněno při jednání na rady obce"]
[]
["PŘÍJMY"]
["PAR","POL","UZ","PARAGRAF","POLOŽKA","Rozpočet na rok 2022","Rozpočet po změnách","změna ROZP","ROZP po ZMĚNĚ","POZNÁMKA"]
[null,1111,null,null,"Příjem z daně z příjmů FO placené plátci",3803000,3803000,0,{"$f":"H14+G14","v":3803000}]
[0,1112,null,null,"Daň z příjmů fyzických osob placená poplatníky",161000,200641.84,102717.17,{"$f":"H15+G15","v":303359.01}]
[null,1113,null,null,"Příjem z DPFO vybírané srážkou ze mzdy",633000,633000,151985.07,{"$f":"H16+G16","v":784985.07000000007}]
[null,1121,null,null,"Příjem z daně z příjmů právnických osob",4736000,4736000,697337.3,{"$f":"H17+G17","v":5433337.2999999998}]
[null,1211,null,null,"Příjem z DPH",13275000,13275000,548427.18000000005,13823427.18]
[0,1342,null,null,"Příjem z poplatku z pobytu",10000,94185,39830,134015,"poplatel u pobytu"]
[0,1345,null,null,"příjem z poplatku za obecní systém odpadového hospodářství",480000,630000,81340,711340,"komunální odpad"]
[null,1356,null,null,"Příjem z úhrad za dobývání nerostů",400000,400000,43797.82,443797.82]
[0,1381,null,null,"Daň z hazardních her",100000,157986.96,54390.66,{"$f":"H22+G22","v":212377.62}]
[0,4213,null,null,"Investiční přijaté transfery ze státních rozpočtů",0,0,319872,319872,"dotace KD Mezice"]
[0,4216,null,null,"Ostatní investiční přijeté transfery ze SR",2319872,2319872,-319872,2000000,"dotace KD Mezice"]
[]
[null,null,null,"bez ODPA",null,30550319.699999999,33319751.039999999,{"$f":"SUM(H15:H25)","v":1719825.2000000002},{"$f":"H26+G26","v":35039576.240000002}]
[2219,2322,null,null,"Přijaté pojistné náhrady",0,863940,511589,{"$f":"H27+G27","v":1375529},"pojistná událost"]
[2219,null,null,"Ostatní záležitosti pozemních komunikací",null,0,0,{"$f":"H27","v":511589},{"$f":"H28+G28","v":511589}]
[2321,2111,null,null,"Příjmy z poskytování služeb a výrobků",1200000,1233799,165507,1399306,"stočné"]
[2321,null,null,"Odvádění a čištění odpadních vod a nakl.s kaly",null,1200000,1200000,{"$f":"H29","v":165507},1365507]
[3613,2132,null,null,"Příjem z pronájmu nebo pachtu",130000,130000,6917,{"$f":"H31+G31","v":136917}]
[3613,null,null,"Nebytové hospodářství",null,130000,130000,6917,{"$f":"H32+G32","v":136917}]
[3639,2119,null,null,"Ostatní příjmy z vlastní činnosti",0,1210,1210,2420,"náhrada za zřízení věcného břemene"]
[3639,null,null,"Komunální služby a územní rozvoj j.n.",null,125000,129600,{"$f":"H33","v":1210},130810]
[3722,2111,null,null,"Příjmy z poskytování služeb a výrobků",58000,73476,5606,79082,"komunální odpad podnikatelé"]
[3722,null,null,"Sběr a svoz komunálních odpadů",null,58000,58000,{"$f":"H35","v":5606},63606]
[6171,2310,null,null,"Příjem z prodeje krátk. A drob. Majetku",0,0,4827.75,4827.75]
[6171,3113,null,null,"Příjem z prodeje ostatního hmotného dlouh. Majetku",0,0,20172.25,20172.25]
[6171,null,null,"Činnost místní správy",null,76000,624374,{"$f":"H37+H38","v":25000},649374]
[null,null,null,"Celkem ZMĚNY v PŘÍJMECH",null,null,null,{"$f":"+H39+H36+H34+H30+H28+H26+H32","v":2435654.2000000002}]
[]
[null,null,null,"Celkem PŘÍJMY",null,null,38021327.039999999,{"$f":"H40","v":2435654.2000000002},{"$f":"H42+G42","v":40456981.240000002}]
[]
["VÝDAJE:"]
["PAR","POL","UZ","PARAGRAF","POLOŽKA","Rozpočet na rok 2022","Rozpočet po změnách","změna ROZP","ROZP po ZMĚNĚ","POZNÁMKA"]
[6171,5171,null,null,"Opravy a udržování",150000,2000000,{"$f":"H40-H48","v":1773163.2000000002},{"$f":"H46+G46","v":3773163.2},"oprava střechy"]
[6171,null,null,"Činnost místní správy",null,null,9236578.1300000008,{"$f":"H46","v":1773163.2000000002},11009741.330000002]
[6399,5362,null,null,"Platby daní státnímu rozpočtu",150000,150000,662491,{"$f":"H48+G48","v":812491},"daně"]
[6399,null,null,"Činnost místní správy",null,1150000,1150000,{"$f":"H48","v":662491},{"$f":"H49+G49","v":1812491}]
[null,null,null,"Celkem ZMĚNY ve VÝDAJÍCH",null,null,null,{"$f":"H49+H46","v":2435654.2000000002}]
[]
[null,null,null,"Celkem VÝDAJE",null,null,41730236.509999998,{"$f":"H50","v":2435654.2000000002},{"$f":"H52+G52","v":44165890.710000001}]
[]
[null,null,null,"Celkem 5XXX",null,null,26880442.949999999,2162686.31,29043129.260000002]
[null,null,null,"Celkem 6XXX",null,null,12687107.249999998,0,12687107.249999998]
[]
[]
["FINANCOVÁNÍ"]
["PAR","POL","UZ","PARAGRAF","POLOŽKA",null,"Upravený ROZP","změna ROZP","ROZP po ZMĚNĚ","POZNÁMKA"]
[null,null,null,"Celkem ZMĚNY ve FINANCOVÁNÍ:",null,null,null,0]
[]
[]
[null,null,null,"REKAPITULACE:"]
[]
[null,null,null,"Celkem PŘÍJMY",null,null,{"$f":"G42","v":38021327.039999999},{"$f":"H40","v":2435654.2000000002},{"$f":"H65+G65","v":40456981.240000002}]
[null,null,null,"Celkem FINANCOVÁNÍ:",null,null,3708909.47,0,3708909.4700000063]
[null,null,null,"Celkem PŘÍJMY+FINANCOVÁNÍ",null,null,{"$f":"G66+G65","v":41730236.509999998},{"$f":"H50","v":2435654.2000000002},{"$f":"H67+G67","v":44165890.710000001}]
[]
[null,null,null,"Celkem VÝDAJE",null,null,{"$f":"G52","v":41730236.509999998},{"$f":"H67","v":2435654.2000000002},{"$f":"I52","v":44165890.710000001}]
[]
[]
["Důvodová zpráva k rozpočtovému opatření č. 16 /2022"]
[]
["Přesun prostředků v rámci nezajištěného výdaje je Čerpán z rezervy obce."]
[]
["Správce rozpočtu : "]
[]
["Starosta obce : "]
[]
["ZO schvaluje dne 19. 12. 2022 rozpočtové opatření č. 16/2022 v předloženém rozsahu."]

{"sheet":"List2","index":1,"n_rows":24,"n_cols":1,"rows_kept":24,"cut":false,"hidden":false,"merged":[]}
["TEXTY PRO FORMULÁŘ ÚPRAVA ROZPOČTU - na začátek kopírují se řádky 3-13"]
["poznámka: Texty, které budou přenášeny z tohoto formuláře, musí být zapsány pouze ve sloupci A"]
[]
[]
["Obec , IČ: Náklo, 00299251"]
[]
["Rozpočtové změny roku 2019 -duben"]
[]
["V souladu s ustanovením § 16 zákona č. 250/2000 Sb., o rozpočtových pravidlech územních rozpočtů dojde k rozpočtovému"]
["opatření v případě změn rozpočtových prostředků na závazných ukazatelích."]
[]
["Rozpočtové opatření č. 1/2019 (předloženo na ZQ 6. 6. 2018) a doplněno při jednání na ZO"]
[]
["TEXTY PRO FORMULÁŘ ÚPRAVA ROZPOČTU - na začátek kopírují se řádky 16-32"]
[]
["Důvodová zpráva k rozpočtovému opatření č. 1/2019"]
[]
["Přesun prostředků v rámci nezajištěného výdaje je Čerpán z rezervy obce."]
[]
["Správce rozpočtu : "]
[]
["Starosta obce : "]
[]
["ZO schvaluje dne 6. 6. 2018 rozpočtové opatření č. 3/2018 v předloženém rozsahu Usnesením č. 1038/1860"]

{"sheet":"List3","index":2,"n_rows":0,"n_cols":0,"rows_kept":0,"cut":false,"hidden":false,"merged":[]}